Workbook

Sheet Start
A2: Wprowadzenie do formuł
A3: Po wykonaniu kilku kroków będziesz w stanie tworzyć formuły i funkcje w programie Excel — najbardziej zaawansowanej aplikacji do tworzenia arkuszy kalkulacyjnych.
A4: Aby wrócić do początku, naciśnij klawisze CTRL+HOME. Aby uruchomić przewodnik, naciśnij klawisze CTRL+PAGE DOWN.

Sheet Podstawowe informacje
A1: Podstawy: wykonywanie obliczeń w programie Excel
A2: W programie Excel możesz dodawać, odejmować, mnożyć i dzielić bez używania jakichkolwiek funkcji wbudowanych. Wystarczy używać operatorów podstawowych: +, -, *, /. Wszystkie formuły rozpoczynają się znakiem równości (=). | C2: Liczby do użycia: | E2: Operacja: | F2: Formuły: | G2: Wyniki:
A3: Aby dodać, zaznacz komórkę F3, wpisz =C3+C4, a następnie naciśnij klawisz Enter. | C3: 1 | E3: Dodawanie (+) | G3: =C3+C4 -> 3
A4: Aby odjąć, zaznacz komórkę F4, wpisz =C3-C4, a następnie naciśnij klawisz Enter. | C4: 2 | E4: Odejmowanie (-) | G4: =C3-C4 -> -1
A5: Aby pomnożyć, zaznacz komórkę F5, wpisz =C3*C4, a następnie naciśnij klawisz Enter. | E5: Mnożenie (*) | G5: =C3*C4 -> 2
A6: Aby podzielić, zaznacz komórkę F6, wpisz =C3/C4, a następnie naciśnij klawisz Enter. | E6: Dzielenie (/) | G6: =C3/C4 -> 0.5
A7: Sprawdź to: zmień liczby w komórkach C3 i C4, a następnie obserwuj, jak automatycznie zmieniają się wyniki formuły. | E7: Potęgowanie (^) | G7: =C3^C4 -> 1
A8: DODATKOWE INFORMACJE: Możesz podnieść wartość do potęgi, używając symbolu daszka (^), na przykład =A1^A2. Wprowadź go, naciskając klawisze Shift+6. W komórce F7 wprowadź =C3^C4.
A9: Więcej szczegółów znajduje się poniżej
A10: Następny krok
A11: Więcej informacji o formułach, komórkach i zakresach
A12: Program Excel składa się z pojedynczych komórek, które są pogrupowane w wiersze i kolumny. Wiersze są ponumerowane, a kolumny oznaczone literami. Jest ponad 1 milion wierszy i 16 000 kolumn i w dowolnych z nich możesz umieszczać formuły.
A13: Formuły mogą zawierać odwołania do komórek, zakresy odwołań do komórek, operatory i stałe. Poniżej przedstawiono wszystkie przykłady formuł: =A1+B1 =10+20 =SUMA(A1:A10)
A14: W trzecim przykładzie powyżej użyto funkcji SUMA. Funkcja to gotowe polecenie, które przyjmuje wartość lub wartości, oblicza je w określony sposób i zwraca wynik. Na przykład funkcja SUMA przyjmuje podane odwołania do komórek lub zakresów i sumuje je. W tym przykładzie przyjmuje komórki od A1 do A10 i sumuje je. Program Excel ma ponad 400 funkcji, które możesz eksplorować na karcie Formuły.
A15: Formuły z funkcjami zaczynają się od znaku równości, następna jest nazwa funkcji z jej argumentami (wartościami używanymi przez funkcję do obliczania) w nawiasach.
A16: Formułę potwierdzasz naciśnięciem klawisza Enter. Gdy to zrobisz, formuła zostanie obliczona, a wynik zostanie wyświetlony w komórce. Aby zobaczyć samą formułę, możesz spojrzeć na pasek formuły pod wstążką lub nacisnąć klawisz F2, aby przejść do trybu edycji, w którym zobaczysz formułę w komórce. Naciśnij ponownie klawisz Enter, aby sfinalizować formułę i obliczyć wynik.
A17: Kilka objaśnień dotyczących formuł
A18: =10+20 to formuła, gdzie 10 i 20 to stałe, a znak + to operator.
A19: =SUMA(A1:A10) to formuła, gdzie SUMA to nazwa funkcji, między nawiasami otwierającymi i zamykającymi znajdują się argumenty funkcji, a A1:A10 to zakres komórek dla funkcji.
A20: =SUMA(A1:A10;C1:C10) to formuła, gdzie SUMA to nazwa funkcji, między nawiasami otwierającymi i zamykającymi znajdują się argumenty funkcji, a A1:A10;C1:C10 to zakresy komórek dla funkcji oddzielone średnikiem.
A21: WARTO WIEDZIEĆ: Stałe to wartości wprowadzane w komórkach lub formułach. Formuła =10+20 może zwracać ten sam wynik, co =A1+B1, jednak stałe nie są dobrym rozwiązaniem. Dlaczego? Ponieważ nie można łatwo zobaczyć stałej bez zaznaczenia komórki i poszukania jej. To może utrudnić jej późniejsze zmienianie. Znacznie prościej jest umieścić stałe w komórkach, gdzie można je łatwo dostosować, i odwoływać się do nich w formułach. Na przykład: Zaznacz poniżej żółtą komórkę z wartością 12. Zobaczysz, że użyto funkcji SUMA z zakresem komórek. Nie wpisano bezpośrednio w formule „4” ani „8”.
A22: Wstecz
A23: Dalej
A24: Więcej informacji w sieci Web
A25: Używanie programu Excel jako kalkulatora
A26: Omówienie formuł w programie Excel
A27: Funkcje programu Excel (według kategorii)
A28: Funkcje programu Excel (lista alfabetyczna)
A29: Bezpłatne szkolenie online dotyczące programu Excel
J40: Wartości
J41: 4
J42: 8
J43: =SUM(J41:J42) -> 12

Sheet Wprowadzenie do funkcji
A1: Wprowadzenie do funkcji
A2: Funkcje umożliwiają wykonywanie wielu czynności, takich jak wykonywanie operacji matematycznych, wyszukiwanie wartości, a nawet obliczanie dat i godzin. Wypróbuj kilka nowych sposobów dodawania wartości przy użyciu funkcji SUMA. | C2: Owoce | D2: Kwota | F2: Mięso | G2: Kwota
A3: W kolumnie Kwota dla pozycji Owoce (komórka D7) wprowadź =SUMA(D3:D6) lub wpisz =SUMA(, a następnie zaznacz ten zakres myszą i naciśnij klawisz Enter. Spowoduje to zsumowanie wartości z komórek D3, D4, D5 i D6. Wynikiem powinna być wartość 170. | C3: Jabłka | D3: 50 | F3: Wołowina | G3: 50
A4: Teraz spróbujmy użyć funkcji Autosumowanie. Zaznacz komórkę w kolumnie Mięso (komórkę G7), a następnie przejdź do pozycji Formuły > Autosumowanie > wybierz pozycję SUMA. Zobaczysz, jak program Excel automatycznie wprowadza formułę. Naciśnij klawisz Enter, aby ją potwierdzić. Funkcja Autosumowanie zawiera wszystkie z najczęściej używanych funkcji. | C4: Pomarańcze | D4: 20 | F4: Drób | G4: 30
A5: Oto przejrzysty skrót klawiaturowy. Zaznacz komórkę D15, a następnie naciśnij klawisze Alt = i klawisz Enter. Spowoduje to automatyczne wprowadzenie funkcji SUMA. | C5: Banany | D5: 60 | F5: Wieprzowina | G5: 10
A6: Więcej szczegółów znajduje się poniżej | C6: Cytryny | D6: 40 | F6: Ryby | G6: 50
A7: DODATKOWE INFORMACJE Wypróbuj funkcję ILE.LICZB, używając dowolnej z już wypróbowanych metod. Funkcja ILE.LICZB zlicza w zakresie komórki, które zawierają liczby. | C7: SUMA > | D7: =SUM(D3:D6) -> 170 | F7: SUMA >
A8: Następny krok
A9: Więcej informacji na temat funkcji | C9: Artykuł | D9: Kwota | F9: Artykuł | G9: Kwota
A10: Przejdź na kartę Formuły i przejrzyj obszar Biblioteka funkcji, w którym wymieniono funkcje według kategorii, takich jak Tekstowe, Data i godzina i tym podobne. Przycisk Wstaw funkcję pozwoli wyszukać funkcje według nazw i uruchomi kreatora funkcji ułatwiającego tworzenie formuły. Gdy zaczniesz wpisywać nazwę funkcji po naciśnięciu klawisza =, program Excel uruchomi funkcję IntelliSense, która wyświetli listę wszystkich funkcji zaczynających się na wpisane litery. Gdy znajdziesz odpowiednią funkcję, naciśnij klawisz Tab, a program Excel automatycznie zakończy wpisywanie jej nazwy i wprowadzi nawias otwierający. Wyświetli także argumenty opcjonalne i wymagane. Teraz przyjrzyjmy się budowie kilku funkcji. Funkcja SUMA ma następującą strukturę: | C10: Chleb | D10: 50 | F10: Chleb | G10: 50
A11: Gdyby funkcja SUMA mogła mówić, powiedziałaby: zwróć sumę wszystkich wartości z komórek od D35 do D38 i całej kolumny H. SUMA to nazwa funkcji, D35:D38 to pierwszy argument zakresu, który jest niemal zawsze wymagany, a H:H to drugi argument zakresu oddzielony średnikiem. Teraz wypróbujemy funkcję, która nie wymaga żadnych argumentów. | C11: Pączki | D11: 100 | F11: Pączki | G11: 100
A12: Funkcja DZIŚ zwraca dzisiejszą datę. Zostanie ona automatycznie zaktualizowana, gdy program Excel ponownie przeprowadzi obliczenia. | C12: Ciastka | D12: 40 | F12: Ciastka | G12: 40
A13: SPRAWDŹ TO Zaznacz te komórki. Następnie w prawym dolnym rogu okna programu Excel poszukaj na dolnym pasku ciągu SUMA: 170. Jest on nazywany paskiem stanu i to tylko inny sposób szybkiego znajdowania sumy i innych szczegółów dotyczących zaznaczonej komórki lub zakresu. | C13: Ciasta | D13: 50 | F13: Ciasta | G13: 50
A14: WAŻNY SZCZEGÓŁ Kliknij dwukrotnie tę komórkę Przy końcu formuły zauważysz liczbę 100. Chociaż można umieszczać liczby w formule w ten sposób, nie jest to zalecane, chyba że jest to naprawdę konieczne. Taka liczba nosi nazwę stałej i łatwo zapomnieć, że została ona tutaj umieszczona. Zamiast tego zaleca się odwołanie do innej komórki, na przykład F51. Dzięki temu taka liczba jest łatwo widoczna i nie jest ukryta w formule. | C14: Babeczki | D14: 20 | F14: Babeczki | G14: 20
A15: Więcej informacji w sieci Web | C15: SUMA > | F15: ILE.LICZB >
A16: Wszystko o funkcji SUMA
A17: Sumowanie liczb za pomocą przycisku Autosumowanie
A18: Wszystko o funkcji ILE.LICZB
A19: Bezpłatne szkolenie online dotyczące programu Excel
A20: Powrót do początku
A21: Następny krok
C34: Owoce | D34: Kwota
C35: Jabłka | D35: 50
C36: Pomarańcze | D36: 20
C37: Banany | D37: 60
C38: Cytryny | D38: 40
C39: SUMA > | D39: =SUM(D35:D38) -> 170
C44: Artykuł | D44: Kwota
C45: Samochody | D45: 20
C46: Ciężarówki | D46: 10
C47: Rowery | D47: 10
C48: Rolki | D48: 40
D50: Łącznie: | F50: Wartość dodatkowa | G50: Nowa suma
D51: =SUM(D45:D48,100) -> 180 | F51: 100 | G51: =SUM(D45:D48,F51) -> 180

Sheet ŚREDNIA
A1: Funkcja ŚREDNIA
A2: Funkcja ŚREDNIA umożliwia obliczenie średniej liczb w zakresie komórek. | C2: Owoce | D2: Kwota | F2: Mięso | G2: Kwota
A3: Zaznacz komórkę D7, a następnie za pomocą przycisku Autosumowanie dodaj funkcję ŚREDNIA. | C3: Jabłka | D3: 50 | F3: Wołowina | G3: 50
A4: Teraz wybierz komórkę G7 i wprowadź funkcję ŚREDNIA, wpisując =ŚREDNIA(G3:G6). | C4: Pomarańcze | D4: 20 | F4: Drób | G4: 30
A5: W komórce D15 możesz użyć funkcji Autosumowanie lub wpisać inną funkcję ŚREDNIA. | C5: Banany | D5: 60 | F5: Wieprzowina | G5: 10
A6: SPRAWDŹ TO Zaznacz dowolny zakres liczb, a następnie spójrz na pasek stanu, aby od razu zobaczyć średnią. | C6: Cytryny | D6: 40 | F6: Ryby | G6: 50
A7: Aktywuj poprzedni arkusz | C7: ŚREDNIA > | F7: ŚREDNIA >
A8: Przejdź do następnego arkusza
A9: DODATKOWE INFORMACJE Spróbuj użyć tutaj funkcji MEDIANA lub WYST.NAJCZĘŚCIEJ. MEDIANA zwraca wartość ze środka zestawu danych, a WYST.NAJCZĘŚCIEJ zwraca wartość występującą najczęściej. | C9: Artykuł | D9: Kwota | F9: Artykuł | G9: Kwota
A10: Linki do dodatkowych informacji w sieci Web | C10: Chleb | D10: 50 | F10: Chleb | G10: 50
A11: Wybierz, aby uzyskać z sieci Web wszelkie informacje na temat funkcji ŚREDNIA | C11: Pączki | D11: 100 | F11: Pączki | G11: 100
A12: Wybierz, aby uzyskać z sieci Web wszelkie informacje na temat funkcji MEDIANA | C12: Ciastka | D12: 40 | F12: Ciastka | G12: 40
A13: Wybierz, aby uzyskać z sieci Web wszelkie informacje na temat funkcji WYST.NAJCZĘŚCIEJ | C13: Ciasta | D13: 50 | F13: Ciasta | G13: 50
A14: Wybierz, aby uzyskać z sieci Web informacje na temat bezpłatnego szkolenia dotyczącego programu Excel | C14: Babeczki | D14: 20 | F14: Babeczki | G14: 20
C15: ŚREDNIA >

Sheet MIN i MAX
A1: Funkcje MIN i MAX
A2: Użyj funkcji MIN do pobrania minimalnej liczby z zakresu komórek. | C2: Owoce | D2: Kwota | F2: Mięso | G2: Kwota
A3: Użyj funkcji MAX do pobrania maksymalnej liczby z zakresu komórek. | C3: Jabłka | D3: 50 | F3: Wołowina | G3: 50
A4: Wybierz komórkę D7, a następnie za pomocą Kreatora Autosumowania dodaj funkcję MIN. | C4: Pomarańcze | D4: 20 | F4: Drób | G4: 30
A5: Teraz wybierz komórkę G7 i wprowadź funkcję MAX, wpisując =MAX(G3:G6). | C5: Banany | D5: 60 | F5: Wieprzowina | G5: 10
A6: W komórce D15 możesz użyć Kreatora Autosumowania albo wpisać funkcję MIN lub MAX. | C6: Cytryny | D6: 40 | F6: Ryby | G6: 50
A7: Więcej informacji w sieci Web | C7: MIN > | F7: MAX >
A8: Wszystko o funkcji MIN
A9: Wszystko o funkcji MAX | C9: Artykuł | D9: Kwota | F9: Artykuł | G9: Kwota
A10: Bezpłatne szkolenie online dotyczące programu Excel | C10: Chleb | D10: 50 | F10: Chleb | G10: 50
A11: WARTO WIEDZIEĆ Funkcji MIN i MAX można używać z wieloma zakresami lub wartościami, aby pokazać większe lub mniejsze z tych wartości, na przykład =MIN(A1:A10;B1:B10) lub =MAX(A1:A10;B1), gdzie komórka B1 zawiera wartość progową, taką jak 10, w przypadku której formuła nie zwróciłaby wyniku mniejszego niż 10. | C11: Pączki | D11: 100 | F11: Pączki | G11: 100
C12: Ciastka | D12: 40 | F12: Ciastka | G12: 40
C13: Ciasta | D13: 50 | F13: Ciasta | G13: 50
C14: Babeczki | D14: 20 | F14: Babeczki | G14: 20
C15: MIN lub MAX > | G15: =MIN(G10:G14,10) -> 10

Sheet Data i godzina
A1: Funkcje daty
A2: Program Excel może zwrócić bieżącą datę na podstawie ustawień regionalnych komputera. Można również dodawać i odejmować daty.
A3: Wypróbuj funkcję DZIŚ, która zwraca dzisiejszą datę. To są funkcje dynamiczne, nazywane również nietrwałymi, więc gdy otworzysz skoroszyt jutro, będzie on zawierał jutrzejszą datę. Wprowadź =DZIŚ() w komórce D6.
A4: Odejmowanie dat — wprowadź datę swoich następnych urodzin w formacie RR-MM-DD w komórce D7 i zobacz, jak program Excel wyświetla informacje, ile dni do nich brakuje, używając funkcji =D7-D6 w komórce D8.
A5: Dodawanie dat — załóżmy, że chcesz wiedzieć, kiedy przypada termin zapłaty rachunku lub zwrotu książki do biblioteki. Możesz dodać do daty dni, aby to sprawdzić. W komórce D10 wprowadź losową liczbę dni. W komórce D11 dodano komórki =D6+D10, aby obliczyć termin od dziś. | C5: Funkcje daty
A6: WARTO WIEDZIEĆ Program Excel przechowuje daty i godziny na podstawie liczby dni od 1 stycznia 1900 r. Godziny są przechowywane w częściach ułamkowych dnia na podstawie minut. Dlatego data i godzina 2017-01-01 12:30 w rzeczywistości są przechowywane jako wartość 42736,5208. Jeśli data lub godzina jest wyświetlana jako liczby podobne do tej, możesz nacisnąć klawisze Ctrl+1, kliknąć pozycję Liczby i wybrać format Data lub Czas. | C6: Dzisiejsza data: | F6: =IF(D6=TODAY(),"Tak jest!","") -> 
A7: WAŻNY SZCZEGÓŁ Jeśli nie chcesz, aby program Excel wyświetlał liczbę ujemną, ponieważ nie wprowadzono jeszcze daty urodzin, możesz użyć następującej funkcji JEŻELI: =JEŻELI(D7="";"";D7-D6), która oznacza „JEŻELI komórka D7 nic nie zawiera, pokaż nic, w przeciwnym razie pokaż wartość D7 minus D6”. | C7: Twoje urodziny:
A8: Funkcje czasu | C8: Dni do Twoich urodzin: | D8: =D7-D6 -> 0
A9: Program Excel może zwrócić bieżącą godzinę na podstawie ustawień regionalnych komputera. Można również dodawać i odejmować godziny. Na przykład może być wymagane śledzenie liczby godzin przepracowanych przez pracownika każdego tygodnia i obliczenie jego pensji oraz liczby nadgodzin.
A10: W komórce D28 wprowadź =TERAZ(), co zwróci bieżącą godzinę i będzie aktualizowane za każdym razem, gdy program Excel przeprowadza obliczenia. Jeśli chcesz zmienić format godziny, możesz nacisnąć klawisze Ctrl+1, kliknąć pozycję Liczby > Czas i wybrać odpowiedni format. | C10: Dni okresu prolongaty:
A11: Dodawanie czasu między godzinami — w komórce D36 wprowadzono formułę =((D35-D32)-(D34-D33))*24 obliczającą godziny rozpoczęcia i zakończenia pracy danej osoby, a następnie odjęto od nich czas trwania obiadu. Zapis *24 na końcu formuły konwertuje część ułamkową dnia widzianą przez program Excel na godziny. Musisz jednak sformatować komórkę jako Liczbowe. Aby to zrobić, przejdź do pozycji Narzędzia główne > Format > Komórki (Ctrl+1) > Liczby > Liczbowe > Miejsca dziesiętne > 2. | C11: Termin zapłaty rachunku: | D11: =D6+D10 -> 00:00:00
A12: Jeśli ta formuła mogłaby mówić, powiedziałaby „Weź godzinę zakończenia pracy i odejmij ją od godziny rozpoczęcia pracy, następnie odejmij godziny wyjścia na obiad/przyjścia z obiadu i pomnóż te wartości przez 24, aby przekonwertować czas ułamkowy programu Excel na godziny” lub =((Godzina zakończenia pracy-Godzina rozpoczęcia pracy)-(Wyjście na obiad-Przyjście z obiadu))*24.
A13: Wstecz
A14: Dalej
A15: Więcej informacji w sieci Web
A16: Wszystko o funkcji DZIŚ
A17: Wszystko o funkcji TERAZ
A18: Wszystko o funkcji DATA
A19: Bezpłatne szkolenie online dotyczące programu Excel
C27: Funkcje czasu
C28: Bieżąca godzina:
C31: Godziny przepracowane dziennie
C32: Godzina rozpoczęcia pracy: | D32: 08:00:00
C33: Wyjście na obiad: | D33: 12:00:00
C34: Przyjście z obiadu: | D34: 13:00:00
C35: Godzina zakończenia pracy: | D35: 17:00:00
C36: Suma godzin: | D36: =((D35-D32)-(D34-D33))*24 -> 8
C45: Statyczna data i godzina
C46: Data: | D46: 2017-09-27
C47: Godzina: | D47: 08:52:00

Sheet Łączenie tekstu i liczb
A1: Łączenie tekstu z różnych komórek
A2: W programie Excel często trzeba połączyć tekst znajdujący się w różnych komórkach. Bardzo częsty jest ten przykład, gdy masz imiona oraz nazwiska i chcesz je połączyć do postaci: imię, nazwisko lub imię i nazwisko. Na szczęście program Excel pozwala to zrobić za pomocą znaku handlowe „i” (&), który można wprowadzić, naciskając klawisze Shift+7. | C2: Imię | D2: Nazwisko | E2: Nazwisko, Imię | F2: Imię i nazwisko
A3: W komórce E3 wprowadź =D3&C3, aby połączyć nazwisko i imię. | C3: Anna | D3: Ostrowska | E3: =D3&", "&C3 -> Ostrowska, Anna | F3: =C3&" "&D3 -> Anna Ostrowska
A4: OstrowskaAnna nie wygląda jednak odpowiednio. Musimy dodać przecinek i spację. W tym celu użyjemy cudzysłowów do utworzenia nowego ciągu tekstowego. Tym razem wprowadź =D3&", "&C3. Część &", "& umożliwia dołączenie przecinka i spacji do tekstu w komórkach. | C4: Szymon | D4: Woźniak
A5: Aby utworzyć imię i nazwisko, połączymy imię i nazwisko, ale użyjemy spacji bez przecinka. W komórce F3 wprowadź =C3&" "&D3. | C5: Jan | D5: Michalski
A6: Więcej szczegółów znajduje się poniżej | C6: Maria | D6: Piotrowska
A7: Dalej | C7: Filip | D7: Majewski
A8: Używanie razem tekstu i liczb | C8: Jerzy | D8: Pawlak
A9: Teraz użyjemy znaku & do połączenia tekstu z liczbami, a nie tylko tekstu z tekstem. Spójrz na komórki C28:D29. Widzisz, że daty i godziny są w osobnych komórkach? Możesz je połączyć za pomocą symbolu &, jak w komórkach C32:C33, ale nie wygląda to za dobrze, prawda? Niestety, program Excel nie wie, jak chcesz sformatować liczby, dlatego sprowadza je do ich formatu podstawowego, czyli w tym przypadku daty kolejnej. Musimy jawnie poinstruować program Excel, jak ma sformatować część liczbową formuły, aby była wyświetlana w odpowiedni sposób w wynikowym ciągu tekstowym. Możesz to zrobić za pomocą funkcji TEKST i kodu formatu. | C9: Sebastian | D9: Kowalczyk
A10: W komórce C36 wprowadź =C28&" "&TEKST(D28;"RRRR-MM-DD"). RRRR-MM-DD to kod formatu rok-miesiąc-dzień, takiego jak 2017-09-25. | C10: Agnieszka | D10: Wysocka
A11: W komórce C37 wprowadź =C29&" "&TEKST(D29;"G:MM"). GG:MM to kod formatu godziny:minuty, takiego jak 13:30.
A12: SPRAWDŹ TO Formuły, zwłaszcza duże, mogą być czasami trudne do odczytania, ale możesz wyodrębnić ich fragmenty spacjami w następujący sposób: =C28 & " " & TEKST(D28;"RRRR-MM-DD")
A13: WARTO POEKSPERYMENTOWAĆ Jeśli nie wiesz, jakiego kodu formatu użyć, naciśnij klawisze Ctrl+1 i wybierz pozycję Liczby, aby sformatować dowolną komórkę w odpowiedni sposób. Następnie wybierz opcję Niestandardowe. Możesz skopiować wyświetlany kod formatu do formuły.
A14: Więcej informacji w sieci Web
A15: Wszystko o funkcji TEKST
A16: Łączenie tekstu i liczb
A17: Bezpłatne szkolenie online dotyczące programu Excel
C27: Używany tekst i liczby
C28: Dzisiejsza data: | D28: =TODAY() -> 2021-10-19
C29: Bieżąca godzina: | D29: =NOW() -> 44488.45398
C31: Łączenie tekstu i liczb
C32: =C28&" "&D28 -> Dzisiejsza data: 44488
C33: =C29&" "&D29 -> Bieżąca godzina: 44488.4539752315
C35: Formatowanie tekstu i liczb
C36: =C28 &" "& TEXT(D28,"RRRR-MM-DD") -> Dzisiejsza data: RRRR-10-19
C37: =C29&" "&TEXT(D29,"G:MM") -> Bieżąca godzina: :10

Sheet Instrukcje JEŻELI
A1: Instrukcje JEŻELI
A2: Instrukcje JEŻELI umożliwiają logiczne porównywanie warunków. Instrukcja JEŻELI zwykle informuje, że gdy jeden warunek jest prawdziwy, należy coś zrobić, a w przeciwnym razie należy zrobić coś innego. Formuły mogą zwracać tekst, wartości lub nawet więcej obliczeń.
A3: W komórce D9 wpisz =JEŻELI(C9="Jabłko";PRAWDA;FAŁSZ). Poprawny wynik to PRAWDA.
A4: Skopiuj wartość komórki D9 do komórki D10. Tutaj wynikiem powinien być FAŁSZ, ponieważ pomarańcza nie jest jabłkiem.
A5: Wypróbuj inny przykład, patrząc na formułę w komórce D12. Zaczęliśmy od formuły =JEŻELI(C12<100;"Mniejsze niż 100";"Większe niż lub równe 100"). Co się stanie, jeśli w komórce C12 wprowadzisz liczbę większą niż 100?
A6: WAŻNY SZCZEGÓŁ PRAWDA i FAŁSZ różnią się od pozostałych wyrazów w formułach programu Excel tym, że nie muszą być ujęte w cudzysłów, a program Excel automatycznie zmieni ich litery na wielkie. Cyfry też nie muszą być ujęte w cudzysłów. Zwykły tekst, na przykład Tak lub Nie, musi być ujęty w cudzysłów w następujący sposób: =JEŻELI(C9="Jabłko";"Tak";"Nie")
A7: Więcej szczegółów znajduje się poniżej
A8: Dalej | C8: Instrukcje JEŻELI
A9: Instrukcja JEŻELI z inną funkcją | C9: Jabłko
A10: Instrukcje JEŻELI mogą również wymuszać wykonanie dodatkowych obliczeń, jeśli jest spełniony określony warunek. Tutaj ocenimy komórkę, aby sprawdzić, czy ma zostać naliczony podatek od sprzedaży, a jeśli warunek jest spełniony, obliczymy go. | C10: Pomarańcza
A11: W komórce F33 wprowadzono formułę =JEŻELI(E33="Tak";F31*Podatek_od_sprzedaży;0), gdzie Podatek_od_sprzedaży skonfigurowano jako nazwany zakres o wartości 0,0825. Formuła oznacza, że jeśli wartość w komórce E33 równa się Tak, pomnóż komórkę F31 przez wartość Podatek_od_sprzedaży, w przeciwnym razie zwróć wartość 0. Spróbuj zmienić w komórce E33 wartość Tak na Nie, aby zobaczyć, jak zmienia się obliczenie.
A12: Następnie dodano instrukcję JEŻELI w celu obliczenia wysyłki, jeśli jest wymagana. W komórce F35 zobaczysz =JEŻELI(E35="Tak";SUMA(D28:D29)*1,25;0). Oznacza to „Jeśli komórka E35 ma wartość Tak, zsumuj kolumnę Ilość w powyższej tabeli i pomnóż ją przez 1,25. W przeciwnym razie zwróć wartość 0”. | C12: 50 | D12: =IF(C12<100,"Mniejsze niż 100","Większe niż lub równe 100") -> Mniejsze niż 100
A13: Następnie zmień wartość 1,25 formuły w komórce F35 na „Wysyłka”. Gdy zaczniesz pisać, autokorekta programu Excel powinna znaleźć tę wartość. Gdy tak się stanie, naciśnij klawisz Tab, aby ją wprowadzić. Jest to nazwany zakres, który wprowadzono w obszarze Formuły > Definiuj nazwę. Jeśli kiedykolwiek zajdzie potrzeba zmiany kosztów wysyłki, będzie trzeba to zrobić tylko w jednym miejscu, a nazwy Wysyłka będzie można używać w dowolnym miejscu w skoroszycie.
A14: WARTO WIEDZIEĆ Podczas tworzenia formuły program Excel automatycznie umieści kolorowe obramowania wokół wszystkich zakresów, do których odwołujesz się w formule, a odpowiadające im zakresy w formule będą w tym samym kolorze. Możesz to zobaczyć, jeśli zaznaczysz komórkę F33 i naciśniesz klawisz F2, aby edytować formułę.
A15: PORADA EKSPERTA Nazwane zakresy umożliwiają zdefiniowanie terminów lub wartości w jednym miejscu, a następnie ponowne używanie ich w całym skoroszycie. Wszystkie nazwane zakresy w tym skoroszycie można zobaczyć, przechodząc do pozycji Formuły > Menedżer nazw. Kliknij tutaj, aby dowiedzieć się więcej.
A16: Wstecz
A17: Dalej
A18: Więcej informacji w sieci Web
A19: Wszystko o funkcji JEŻELI
A20: Wszystko o funkcji WARUNKI
A21: Zaawansowane instrukcje JEŻELI
A22: Bezpłatne szkolenie online dotyczące programu Excel
C27: Artykuł | D27: Ilość | E27: Koszt | F27: Suma
C28: Wihajster | D28: 2 | E28: 9.76 zł | F28: ='Instrukcje JEŻELI'!$E$28:$E$29*'Instrukcje JEŻELI'!$D$28:$D$29 -> 19.52 zł
C29: To coś | D29: 3 | E29: 3.42 zł | F29: ='Instrukcje JEŻELI'!$E$28:$E$29*'Instrukcje JEŻELI'!$D$28:$D$29 -> 10.26 zł
D31: Suma częściowa | E31: =SUM('Instrukcje JEŻELI'!$E$28:$E$29) -> 13.18 zł | F31: =SUM('Instrukcje JEŻELI'!F28:F29) -> 29.78 zł
D33: Podatek od sprzedaży? | E33: Tak | F33: =IF(E33="Tak",F31*Podatek_od_sprzedaży,0) -> 2.46 zł
D35: Wysyłka? | E35: Tak | F35: =IF(E35="Tak",SUM(D28:D29)*1.25,0) -> 6.25 zł
D37: Suma | F37: =SUM(F33,F31,F35) -> 38.48 zł

Sheet WYSZUKAJ.PIONOWO
A1: WYSZUKAJ.PIONOWO
A2: Funkcja WYSZUKAJ.PIONOWO to jedna z najczęściej używanych (a także naszych ulubionych) funkcji programu Excel. Funkcja WYSZUKAJ.PIONOWO umożliwia wyszukanie wartości w kolumnie po lewej stronie, a następnie zwraca informacje w innej kolumnie po prawej, jeśli znajdzie dopasowanie. Funkcja WYSZUKAJ.PIONOWO ma następującą strukturę:
A3: =WYSZUKAJ.PIONOWO(A1;B:C;2;FAŁSZ)
A4: Co chcesz wyszukać?
A5: Jeśli to znajdziesz, o ile kolumn w prawo chcesz pobrać wartość?
A6: Gdzie chcesz to wyszukać?
A7: Potrzebujesz dopasowania dokładnego, czy przybliżonego?
A8: W komórce D22 wprowadź =WYSZUKAJ.PIONOWO(C22;C17:D20;2;FAŁSZ). Poprawny wynik dla wartości Jabłka to 50. Funkcja WYSZUKAJ.PIONOWO wyszukała wyraz Jabłka, znalazła go, a następnie przeszła o jedną kolumnę w prawo i zwróciła kwotę.
A9: Teraz spróbuj samodzielnie w sekcji Mięso w komórce G22. Rezultat powinien być następujący: =WYSZUKAJ.PIONOWO(F22;F17:G20;2;FAŁSZ).
A10: POEKSPERYMENTUJ Spróbuj wybrać różne elementy z list rozwijanych. Komórki wynikowe natychmiast zaktualizują się, pokazując nowe wartości.
A11: Więcej szczegółów znajduje się poniżej
A12: Dalej
A13: WYSZUKAJ.PIONOWO i #N/D!
A14: Niezmiennie będzie występować sytuacja, w której funkcja WYSZUKAJ.PIONOWO nie będzie mogła znaleźć tego, co miała wyszukać, i zwróci błąd (#N/D!). Czasem jest tak, ponieważ szukana wartość po prostu nie istnieje lub komórka odwołania nie ma jeszcze wartości.
A15: Jeśli wiesz, że szukana wartość istnieje, ale chcesz ukryć błąd, gdy szukana komórka jest pusta, możesz użyć instrukcji JEŻELI. W tym przypadku umieścimy istniejącą formułę WYSZUKAJ.PIONOWO, taką jak ta, w komórce D43: =JEŻELI(C43="";"";WYSZUKAJ.PIONOWO(C43;C37:D41;2;FAŁSZ)) Oznacza to, że jeśli komórka C43 jest równa nic (""), nic nie zwracaj, a w przeciwnym razie zwróć wyniki funkcji WYSZUKAJ.PIONOWO. Zwróć uwagę na drugi nawias zamykający na końcu formuły. Zamyka on instrukcję JEŻELI.
A16: Jeśli nie masz pewności, czy szukana wartość istnieje, ale nadal chcesz pominąć błąd #N/D!, możesz użyć w komórce G43 funkcji do obsługi błędów JEŻELI.BŁĄD: =JEŻELI.BŁĄD(WYSZUKAJ.PIONOWO(F43;F37:G41;2;FAŁSZ);""). Funkcja JEŻELI.BŁĄD oznacza, że jeśli funkcja WYSZUKAJ.PIONOWO zwróci prawidłowy wynik, zostanie on wyświetlony, a w przeciwnym razie nic nie zostanie wyświetlone (""). Tutaj nie jest nic wyświetlane (""), ale można też użyć liczb (0,1, 2, itd.) lub tekstu, takiego jak „Formuła jest nieprawidłowa”. | C16: Owoce | D16: Kwota | F16: Mięso | G16: Kwota
A17: WAŻNY SZCZEGÓŁ Funkcja JEŻELI.BŁĄD generuje błąd nadrzędny, co oznacza, że blokuje wyświetlanie wszystkich błędów zwracanych przez formułę. Może to powodować problemy, jeśli program Excel powiadamia, że formuła zawiera prawdziwy błąd, który należy naprawić. W praktyce nie należy dodawać funkcji obsługi błędów do formuł, dopóki nie ma się absolutnej pewności, że działają one poprawnie. | C17: Jabłka | D17: 50 | F17: Wołowina | G17: 50
A18: Wstecz | C18: Pomarańcze | D18: 20 | F18: Drób | G18: 30
A19: Dalej | C19: Banany | D19: 60 | F19: Wieprzowina | G19: 10
A20: Więcej informacji w sieci Web | C20: Cytryny | D20: 40 | F20: Ryby | G20: 50
A21: Wszystko o funkcji WYSZUKAJ.PIONOWO
A22: Wszystko o funkcjach INDEKS/PODAJ.POZYCJĘ | C22: Jabłka | F22: Wieprzowina
A23: Wszystko o funkcji JEŻEL.BŁĄD
A24: Używanie tabel przestawnych do analizowania danych w arkuszu
A25: Bezpłatne szkolenie online dotyczące programu Excel
C35: Jeśli funkcja SUMA z komórki D42 mogłaby mówić, powiedziałaby to: Zsumuj wartości z komórek D38, D39, D40 i D41.
C36: Artykuł | D36: Kwota | F36: Artykuł | G36: Kwota
C37: Chleb | D37: 50 | F37: Chleb | G37: 50
C38: Pączki | D38: 100 | F38: Pączki | G38: 100
C39: Ciastka | D39: 40 | F39: Ciastka | G39: 40
C40: Ciasta | D40: 50 | F40: Ciasta | G40: 50
C41: Babeczki | D41: 20 | F41: Babeczki | G41: 20
D43: =VLOOKUP(C43,C37:D41,2,FALSE) ->  | F43: Wyroby cukiernicze | G43: =IFERROR(VLOOKUP(F43,F37:G41,2,FALSE),"") -> 

Sheet Funkcje warunkowe
A1: Funkcje warunkowe — SUMA.JEŻELI
A2: Funkcje warunkowe pozwalają sumować, obliczać średnią, liczbę elementów i pobierać minimum lub maksimum zakresu na podstawie danego warunku lub określonego kryterium. Na przykład ile ze wszystkich owoców na liście to jabłka. Lub ile pomarańczy jest typu Florida? | C2: Owoce | D2: Kwota | F2: Owoce | G2: Typ | H2: Kwota | Z2: Owoce | AB2: Jabłka | AD2: Pomarańcze | AF2: Banany | AH2: Cytryny
A3: Funkcja SUMA.JEŻELI umożliwia sumowanie w jednym zakresie na podstawie konkretnych kryteriów szukanych w innym zakresie, takich jak liczba jabłek. Zaznacz komórkę D17 i wpisz =SUMA.JEŻELI(C3:C14;C17;D3:D14). Funkcja SUMA.JEŻELI ma następującą strukturę: | C3: Jabłka | D3: 50 | F3: Jabłka | G3: Fuji | H3: 50 | Z3: Jabłka | AB3: Fuji | AD3: Florida | AF3: Cavendish | AH3: Rough
A4: =SUMIF(C3:C14,C17,D3:D14) -> 150 | C4: Pomarańcze | D4: 20 | F4: Pomarańcze | G4: Florida | H4: 20 | Z4: Pomarańcze | AB4: Honeycrisp | AD4: Navel | AF4: Lady Finger | AH4: Eureka
A5: Jakiemu zakresowi chcesz się przyjrzeć? | C5: Banany | D5: 60 | F5: Banany | G5: Cavendish | H5: 60 | Z5: Banany
A6: Jakiej wartości (tekstowej lub liczbowej) chcesz poszukać? | C6: Cytryny | D6: 40 | F6: Cytryny | G6: Rough | H6: 40 | Z6: Cytryny
A7: Dla każdego znalezionego dopasowania w którym zakresie chcesz sumować? | C7: Jabłka | D7: 50 | F7: Jabłka | G7: Honeycrisp | H7: 50
A8: Funkcja SUMA.WARUNKÓW jest taka sama jak funkcja SUMA.JEŻELI, ale pozwala używać wielu kryteriów. W tym przykładzie można poszukać wartości według kolumn Owoce i Typ zamiast tylko według kolumny Owoce. Zaznacz komórkę H17 i wpisz =SUMA.WARUNKÓW(H3:H14;F3:F14;F17;G3:G14;G17). Funkcja SUMA.WARUNKÓW ma następującą strukturę: | C8: Pomarańcze | D8: 20 | F8: Pomarańcze | G8: Navel | H8: 20
A9: =SUMA.WARUNKÓW(H3:H14;F3:F14;F17;G3:G14;G17) | C9: Banany | D9: 60 | F9: Banany | G9: Lady Finger | H9: 60
A10: Który zakres chcesz zsumować? | C10: Cytryny | D10: 40 | F10: Cytryny | G10: Eureka | H10: 40
A11: To jest pierwszy zakres, w którym będą szukane dopasowania | C11: Jabłka | D11: 50 | F11: Jabłka | G11: Honeycrisp | H11: 50
A12: To jest kryterium dla pierwszego dopasowania | C12: Pomarańcze | D12: 20 | F12: Pomarańcze | G12: Navel | H12: 20
A13: To jest drugi zakres, w którym będą szukane dopasowania | C13: Banany | D13: 60 | F13: Banany | G13: Cavendish | H13: 60
A14: To jest kryterium dla drugiego dopasowania | C14: Cytryny | D14: 40 | F14: Cytryny | G14: Eureka | H14: 40
A15: PORADA EKSPERTA Każda z komórek Owoce i Typ ma listę rozwijaną, z której można wybierać różne owoce. Wypróbuj i obserwuj, jak formuły są aktualizowane automatycznie.
A16: Więcej szczegółów znajduje się poniżej | C16: Owoce | D16: SUMA.JEŻELI | F16: Owoce | G16: Typ | H16: SUMA.WARUNKÓW
A17: Następny krok | C17: Jabłka | F17: Pomarańcze | G17: Florida
A18: Funkcje warunkowe — LICZ.JEŻELI
A19: Funkcje LICZ.JEŻELI oraz LICZ.WARUNKI umożliwiają zliczanie wartości w zakresie na podstawie określonych kryteriów. Różnią się one nieco od innych funkcji JEŻELI i WARUNKI tym, że mają tylko zakres kryteriów i kryterium. Nie oszacowują jednego zakresu, a następnie nie wyszukują w innym w celu podsumowania.
A20: Zaznacz komórkę D64 i wpisz =LICZ.JEŻELI(C50:C61;C64). Funkcja LICZ.JEŻELI ma następującą strukturę:
A21: =LICZ.JEŻELI(C50:C61;C64)
A22: Jakiemu zakresowi chcesz się przyjrzeć?
A23: Jakiej wartości (tekstowej lub liczbowej) chcesz poszukać?
A24: Funkcja LICZ.WARUNKI jest taka sama jak funkcja SUMA.JEŻELI, ale pozwala używać wielu kryteriów. W tym przykładzie można poszukać wartości według kolumn Owoce i Typ zamiast tylko według kolumny Owoce. Zaznacz komórkę H64 i wpisz =LICZ.WARUNKI(F50:F61;F64;G50:G61;G64). Funkcja LICZ.WARUNKI ma następującą strukturę:
A25: =LICZ.WARUNKI(F50:F61;F64;G50:G61;G64)
A26: To jest pierwszy zakres do zliczenia
A27: To jest kryterium dla pierwszego dopasowania
A28: To jest drugi zakres do zliczenia
A29: To jest kryterium dla drugiego dopasowania
A30: Więcej szczegółów znajduje się poniżej
A31: Dalej
A32: Więcej funkcji warunkowych
A33: Znasz już funkcje SUMA.JEŻELI, SUMA.WARUNKÓW, LICZ.JEŻELI i LICZ.WARUNKI. Teraz możesz samodzielnie wypróbować inne funkcje, takie jak ŚREDNIA.JEŻELI/ŚREDNIA.WARUNKÓW, MAKS.WARUNKÓW i MIN.WARUNKÓW. Wszystkie one mają tę samą strukturę, więc po napisaniu jednej formuły możesz po prostu zamienić nazwę funkcji na odpowiednią. Napisaliśmy wszystkie funkcje potrzebne dla komórki E106, więc możesz je skopiować i wkleić lub spróbować wpisać je samodzielnie w ramach ćwiczeń. SUMA.JEŻELI =SUMA.JEŻELI(C92:C103;C106;E92:E103) SUMA.WARUNKÓW =SUMA.WARUNKÓW(E92:E103;C92:C103;C106;D92:D103;D106) ŚREDNIA.JEŻELI =ŚREDNIA.JEŻELI(C92:C103;C106;E92:E103) ŚREDNIA.WARUNKÓW =ŚREDNIA WARUNKÓW(E92:E103;C92:C103;C106;D92:D103;D106) LICZ.JEŻELI =LICZ.JEŻELI(C92:C103;C106) LICZ.WARUNKI =LICZ.WARUNKI(C92:C103;C106;D92:D103;D106) MAKS.WARUNKÓW =MAKS.WARUNKÓW(E92:E103;C92:C103;C106;D92:D103;D106) MIN.WARUNKÓW =MIN.WARUNKÓW(E92:E103;C92:C103;C106;D92:D103;D106)
A34: Więcej szczegółów znajduje się poniżej
A35: Dalej
A36: SUMA.JEŻELI z argumentem wartości
A37: Oto przykład użycia funkcji SUMA.JEŻELI z zastosowaniem warunku większe niż (>) do znajdowania wszystkich wartości większych niż podana kwota:
A38: =SUMIF(D118:D122,">=50") -> 200
A39: Zsumuj kilka wartości na podstawie tego kryterium:
A40: ...Przejrzyj te komórki...
A41: ...i jeśli ich wartość jest większa niż 50, zsumuj je.
A42: UWAGA: Jeśli często korzystasz z formuł warunkowych, może się okazać, że lepszym rozwiązaniem będzie użycie tabeli przestawnej. Zobacz ten artykuł dotyczący tabeli przestawnej, aby uzyskać więcej informacji.
A43: Więcej informacji w sieci Web
A44: Wszystko o funkcji SUMA.JEŻELI
A45: Wszystko o funkcji SUMA.WARUNKÓW
A46: Wszystko o funkcji LICZ.JEŻELI
A47: Wszystko o funkcji LICZ.WARUNKI
A48: Wszystko o funkcji ŚREDNIA.JEŻELI
A49: Wszystko o funkcji ŚREDNIA.WARUNKÓW | C49: Owoce | D49: Kwota | F49: Owoce | G49: Typ | H49: Kwota
A50: Wszystko o funkcji MIN.WARUNKÓW | C50: Jabłka | D50: 50 | F50: Jabłka | G50: Fuji | H50: 50
A51: Wszystko o funkcji MAKS.WARUNKÓW | C51: Pomarańcze | D51: 20 | F51: Pomarańcze | G51: Florida | H51: 20
A52: Tworzenie listy rozwijanej | C52: Banany | D52: 60 | F52: Banany | G52: Cavendish | H52: 60
A53: Bezpłatne szkolenie online dotyczące programu Excel | C53: Cytryny | D53: 40 | F53: Cytryny | G53: Rough | H53: 40
A54: Powrót do początku | C54: Jabłka | D54: 50 | F54: Jabłka | G54: Honeycrisp | H54: 50
A55: Dalej | C55: Pomarańcze | D55: 20 | F55: Pomarańcze | G55: Navel | H55: 20
C56: Banany | D56: 60 | F56: Banany | G56: Lady Finger | H56: 60
C57: Cytryny | D57: 40 | F57: Cytryny | G57: Eureka | H57: 40
C58: Jabłka | D58: 50 | F58: Jabłka | G58: Honeycrisp | H58: 50
C59: Pomarańcze | D59: 20 | F59: Pomarańcze | G59: Navel | H59: 20
C60: Banany | D60: 60 | F60: Banany | G60: Cavendish | H60: 60
C61: Cytryny | D61: 40 | F61: Cytryny | G61: Eureka | H61: 40
C63: Owoce | D63: LICZ.JEŻELI | F63: Owoce | G63: Typ | H63: LICZ.WARUNKI
C64: Jabłka | D64: =COUNTIF(C50:C61,C64) -> 3 | F64: Pomarańcze | G64: Florida | H64: =COUNTIFS(F50:F61,F64,G50:G61,G64) -> 1
C91: Owoce | D91: Typ | E91: Kwota
C92: Jabłka | D92: Fuji | E92: 50
C93: Pomarańcze | D93: Florida | E93: 20
C94: Banany | D94: Cavendish | E94: 60
C95: Cytryny | D95: Rough | E95: 40
C96: Jabłka | D96: Honeycrisp | E96: 50
C97: Pomarańcze | D97: Navel | E97: 20
C98: Banany | D98: Lady Finger | E98: 60
C99: Cytryny | D99: Eureka | E99: 40
C100: Jabłka | D100: Honeycrisp | E100: 50
C101: Pomarańcze | D101: Navel | E101: 20
C102: Banany | D102: Cavendish | E102: 60
C103: Cytryny | D103: Eureka | E103: 40
C105: Owoce | D105: Typ | E105: Spróbuj
C106: Cytryny | D106: Eureka | E106: =AVERAGEIFS(E92:E103,C92:C103,C106,D92:D103,D106) -> 40
C117: Artykuł | D117: Kwota
C118: Chleb | D118: 50
C119: Pączki | D119: 100
C120: Ciastka | D120: 40
C121: Ciasta | D121: 50
C122: Babeczki | D122: 20
D123: =SUMIF(D118:D122,">=50") -> 200

Sheet Kreator funkcji
A1: Pozwól, aby poprowadził Cię Kreator funkcji
A2: Jeśli znasz nazwę potrzebnej funkcji, ale nie masz pewności, jak ją skonstruować, możesz w tym celu użyć Kreatora funkcji.
A3: Zaznacz komórkę D10, a następnie przejdź do pozycji Formuły > Wstaw funkcję > wpisz WYSZUKAJ.PIONOWO w polu Wyszukaj funkcję i naciśnij przycisk Przejdź. Gdy zobaczysz wyróżnioną funkcję WYSZUKAJ.PIONOWO, kliknij na dole przycisk OK. Gdy wybierzesz funkcję na liście, program Excel wyświetli jej składnię.
A4: Następnie wprowadź argumenty funkcji w odpowiednich polach tekstowych. Po wprowadzeniu każdego z nich program Excel oszacuje go i wyświetli jego wynik, a wynik końcowy będzie widoczny na dole. Podczas wprowadzania każdej sekcji kryteria dla każdego argumentu są wymienione w dolnej części formularza. Gdy wszystko będzie gotowe, naciśnij przycisk OK, a program Excel wprowadzi formułę za Ciebie. | C4: Owoce | D4: Kwota
A5: SPRAWDŹ TO Rezultat powinien być następujący: =WYSZUKAJ.PIONOWO(C10;C5:D8;2;FAŁSZ) | C5: Jabłka | D5: 50
A6: WARTO WIEDZIEĆ Odwołania do komórek i zakresów możesz wpisać albo zaznaczyć je myszą. | C6: Pomarańcze | D6: 20
A7: WARTO WIEDZIEĆ Podczas wypełniania sekcji poszczególnych argumentów w dolnej części formularza, nad wynikiem formuły, będzie wyświetlany opis argumentu. | C7: Banany | D7: 60
A8: Wstecz | C8: Cytryny | D8: 40
A9: Dalej
A10: Więcej informacji w sieci Web | C10: Jabłka | D10: =VLOOKUP(C10,C5:D8,2,FALSE) -> 50
A11: Omówienie formuł w programie Excel
A12: Funkcje programu Excel (według kategorii)
A13: Funkcje programu Excel (lista alfabetyczna)
A14: Bezpłatne szkolenie online dotyczące programu Excel

Sheet Błędy w formułach
A1: Naprawianie błędów w formułach
A2: Kiedyś napotkasz formułę zawierającą błąd, którą program Excel wyświetli w postaci #NazwaBłędu. Błędy mogą być przydatne, ponieważ wskazują, kiedy coś nie działa prawidłowo, ale ich naprawienie może być trudne. Na szczęście istnieje kilka opcji, które mogą ułatwić zidentyfikowanie źródła błędu i naprawienie go.
A3: Sprawdzanie błędów — przejdź do pozycji Formuły > Sprawdzanie błędów. Spowoduje to załadowanie okna dialogowego z ogólną przyczyną konkretnego błędu. Błąd #N/D! w komórce D9 powoduje brak wartości pasującej do wyrazu „Jabłko”. Można to naprawić, używając istniejącej wartości, pomijając błąd za pomocą funkcji JEŻELI.BŁĄD, lub ignorując go, wiedząc, że zniknie po użyciu istniejącej wartości. | C3: Owoce | D3: Kwota
A4: Jeśli klikniesz przycisk Pomoc na temat tego błędu, zostanie otwarty temat Pomocy odpowiedni dla danego komunikatu o błędzie. Jeśli klikniesz przycisk Pokaż kroki obliczania, zostanie załadowane okno dialogowe Szacowanie formuły. | C4: Jabłka | D4: 50
A5: Każdorazowo po kliknięciu przycisku Szacuj program Excel przejdzie przez formułę po jednej sekcji naraz. Niekoniecznie poinformuje, dlaczego występuje błąd, ale wskaże, gdzie występuje. W tym miejscu spójrz na temat Pomocy, aby ustalić przyczynę błędu w formule. | C5: Pomarańcze | D5: 20
A6: POEKSPERYMENTUJ Co jest tutaj niepoprawne? Wskazówka: Próbujemy użyć funkcji SUMA dla wszystkich artykułów. | C6: Banany | D6: 60
A7: WARTO WIEDZIEĆ Kliknięcie przycisku Opcje pozwoli ustawić reguły, kiedy błędy w programie Excel mają być wyświetlane lub ignorowane. | C7: Cytryny | D7: 40
A8: Wstecz
A9: Dalej | C9: Jabłko | D9: =VLOOKUP(C9,C3:D7,2,FALSE) -> 
A10: Więcej informacji w sieci Web
A11: Wykrywanie błędów w formułach
A12: Jak unikać niepoprawnych formuł
A13: Szacowanie formuły zagnieżdżonej krok po kroku
A14: Bezpłatne szkolenie online dotyczące programu Excel
C30: Owoce | D30: Kwota
C31: Jabłka | D31: 50
C32: Pomarańcze | D32: 20
C33: Banany | D33: 60
C34: Cytryny | D34: 40
C36: Suma | D36: =sume(D31:D34) -> 

Sheet Dowiedz się więcej
A1: Masz więcej pytań dotyczących programu Excel?
A2: Naciśnij klawisze ALT+Q i wpisz to, czego chcesz się dowiedzieć.
A3: Odkrywaj dalej. Można się jeszcze wiele dowiedzieć o programie Excel:
A4: Społeczność: Zadawaj pytania i komunikuj się z innymi entuzjastami programu Excel.
A5: Jakie jeszcze nowości wprowadzono? Subskrybenci usługi Office 365 uzyskują ciągłe aktualizacje i nowe funkcje.
